fUST/lending_fUST_20260623
["ID","MTS","AMOUNT","RATE_DAILY","PERIOD"]
[426214660,1782216647000,-500.0,0.00016709,2]
[426214665,1782216647000,-500.0,0.00016709,2]
[426214673,1782216647000,-500.0,0.00016709,2]
[426214662,1782216647000,-500.0,0.00016709,2]
[426214666,1782216647000,-500.0,0.00016709,2]
[426214674,1782216647000,-310.88502359,0.00016709,2]
[426214664,1782216647000,-500.0,0.00016709,2]
[426214670,1782216647000,-500.0,0.00016709,2]
[426214669,1782216647000,-500.0,0.00016709,2]
[426214667,1782216647000,-500.0,0.00016709,2]
[426214672,1782216647000,-500.0,0.00016709,2]
[426214668,1782216647000,-500.0,0.00016709,2]
[426214671,1782216647000,-500.0,0.00016709,2]
[426214658,1782216647000,-188.63001342,0.00016709,2]
[426214663,1782216647000,-500.0,0.00016709,2]
[426214659,1782216647000,-500.0,0.00016709,2]
[426214639,1782216647000,-300.0,0.00016342,2]
[426214652,1782216647000,-600.0,0.00016342,2]
[426214675,1782216647000,-500.0,0.00016709,2]
[426214635,1782216647000,-525.74986456,0.00015313,2]
[426214647,1782216647000,-300.0,0.00016342,2]
[426214637,1782216647000,-300.0,0.00016342,2]
[426214649,1782216647000,-300.0,0.00016342,2]
[426214636,1782216647000,-96.08958492,0.00016342,2]
[426214648,1782216647000,-300.0,0.00016342,2]
[426214640,1782216647000,-300.0,0.00016342,2]
[426214644,1782216647000,-300.0,0.00016342,2]
[426214642,1782216647000,-300.0,0.00016342,2]
[426214645,1782216647000,-300.0,0.00016342,2]
[426214646,1782216647000,-300.0,0.00016342,2]
[426214643,1782216647000,-300.0,0.00016342,2]
[426214650,1782216647000,-300.0,0.00016342,2]
[426214653,1782216647000,-500.0,0.00016342,2]
[426214656,1782216647000,-500.0,0.00016491,2]
[426214654,1782216647000,-500.0,0.00016438,2]
[426214657,1782216647000,-500.0,0.00016709,2]
[426214676,1782216647000,-500.0,0.00016709,2]
[426214695,1782216647000,-500.0,0.00016709,2]
[426214683,1782216647000,-500.0,0.00016709,2]
[426214700,1782216647000,-500.0,0.00016709,2]
[426214703,1782216647000,-500.0,0.00016709,2]
[426214702,1782216647000,-500.0,0.00016709,2]
[426214701,1782216647000,-500.0,0.00016709,2]
[426214709,1782216647000,-500.0,0.00016712,2]
[426214710,1782216647000,-807.06,0.00016712,2]
[426214706,1782216647000,-555.76969194,0.0001671,2]
[426214711,1782216647000,-500.0,0.00016966,2]
[426214704,1782216647000,-500.0,0.00016709,2]
[426214705,1782216647000,-348.75738629,0.00016709,2]
[426214708,1782216647000,-500.0,0.00016711,2]
[426214712,1782216647000,-500.0,0.00016985,2]
[426214713,1782216647000,-500.0,0.00016986,2]
[426214716,1782216647000,-500.0,0.00017259,2]
[426214715,1782216647000,-1360.28530464,0.0001704,2]
[426214714,1782216647000,-807.06,0.00016986,2]
[426214678,1782216647000,-500.0,0.00016709,2]
[426214697,1782216647000,-500.0,0.00016709,2]
[426214698,1782216647000,-638.8164766,0.00016709,2]
[426214707,1782216647000,-500.0,0.00016711,2]
[426214693,1782216647000,-500.0,0.00016709,2]
[426214679,1782216647000,-500.0,0.00016709,2]
[426214696,1782216647000,-500.0,0.00016709,2]
[426214686,1782216647000,-500.0,0.00016709,2]
[426214684,1782216647000,-500.0,0.00016709,2]
[426214685,1782216647000,-500.0,0.00016709,2]
[426214677,1782216647000,-500.0,0.00016709,2]
[426214680,1782216647000,-500.0,0.00016709,2]
[426214687,1782216647000,-500.0,0.00016709,2]
[426214681,1782216647000,-500.0,0.00016709,2]
[426214682,1782216647000,-500.0,0.00016709,2]
[426214699,1782216647000,-500.0,0.00016709,2]
[426214694,1782216647000,-500.0,0.00016709,2]
[426214689,1782216647000,-500.0,0.00016709,2]
[426214690,1782216647000,-500.0,0.00016709,2]
[426214692,1782216647000,-500.0,0.00016709,2]
[426214691,1782216647000,-367.75474906,0.00016709,2]
[426214717,1782216647000,-3.86252101,0.0001726,2]
[426214688,1782216647000,-500.0,0.00016709,2]
[426215030,1782217036000,-589.1199704,0.00013064,2]
[426215031,1782217037000,-500.0,0.00013064,2]
[426215032,1782217038000,-500.0,0.00013064,2]
[426215033,1782217040000,-605.21789017,0.00013064,2]
[426215034,1782217041000,-500.0,0.00013064,2]
[426215035,1782217041000,-500.0,0.00013064,2]
[426215036,1782217042000,-500.0,0.00013064,2]
[426215047,1782217220000,625.21817577,0.00022124,120]
[426215048,1782217222000,620.26090879,0.0002323,120]
[426215144,1782217383000,213.26224626,0.00023,120]
[426215195,1782217704000,224.22432066,0.00023238,120]
[426215222,1782217831000,-2997.61177541,0.0001158,13]
[426215218,1782217831000,-300.0,0.00011349,13]
[426215221,1782217831000,-1476.64923379,0.00011464,13]
[426215220,1782217831000,-279.87330539,0.00011349,13]
[426215219,1782217831000,-534.6428529,0.00011349,13]
[426215230,1782217831000,-269.2443209,0.00014615,2]
[426215232,1782217831000,-160.29030719,0.00014807,7]
[426215234,1782217831000,-187.12586,0.00015068,2]
[426215226,1782217831000,-226.20610695,0.0001293,7]
[426215223,1782217831000,-475.3423219,0.0001158,13]
[426215236,1782217831000,-160.29030719,0.00016041,7]
[426215238,1782217831000,-752.38376269,0.00016287,2]
[426215224,1782217831000,-1527.04590269,0.0001158,13]
[426215228,1782217831000,-341.0,0.000136,2]
[426215372,1782217838000,-218.2112616,0.00016436,2]
[426215362,1782217838000,-500.0,0.00016436,2]
[426215370,1782217838000,-500.0,0.00016436,2]
[426215358,1782217838000,-500.0,0.00016436,2]
[426215368,1782217838000,-500.0,0.00016436,2]
[426215360,1782217838000,-500.0,0.00016436,2]
[426215357,1782217838000,-500.0,0.00016436,2]
[426215374,1782217838000,-500.0,0.00016436,2]
[426215367,1782217838000,-500.0,0.00016436,2]
[426215354,1782217838000,-500.0,0.00016436,2]
[426215376,1782217838000,-500.0,0.00016436,2]
[426215382,1782217838000,-500.0,0.00016436,2]
[426215378,1782217838000,-500.0,0.00016436,2]
[426215352,1782217838000,-500.0,0.00016436,2]
[426215384,1782217838000,-500.0,0.00016436,2]
[426215386,1782217838000,-500.0,0.00016436,2]
[426215388,1782217838000,-500.0,0.00016436,2]
[426215399,1782217838000,-500.0,0.00016436,2]
[426215394,1782217838000,-500.0,0.00016436,2]
[426215397,1782217838000,-500.0,0.00016436,2]
[426215392,1782217838000,-500.0,0.00016436,2]
[426215396,1782217838000,-500.0,0.00016436,2]
[426215380,1782217838000,-500.0,0.00016436,2]
[426215364,1782217838000,-500.0,0.00016436,2]
[426215349,1782217838000,-500.0,0.00016436,2]
[426215351,1782217838000,-500.0,0.00016436,2]
[426215315,1782217838000,-500.0,0.00016338,2]
[426215320,1782217838000,-500.0,0.00016436,2]
[426215318,1782217838000,-500.0,0.00016436,2]
[426215322,1782217838000,-500.0,0.00016436,2]
[426215317,1782217838000,-500.0,0.00016339,2]
[426215306,1782217838000,-570.02764104,0.00016287,2]
[426215324,1782217838000,-500.0,0.00016436,2]
[426215309,1782217838000,-2966.77736607,0.00016336,2]
[426215311,1782217838000,-500.0,0.00016338,2]
[426215326,1782217838000,-500.0,0.00016436,2]
[426215347,1782217838000,-500.0,0.00016436,2]
[426215313,1782217838000,-500.0,0.00016338,2]
[426215330,1782217838000,-500.0,0.00016436,2]
[426215334,1782217838000,-500.0,0.00016436,2]
[426215332,1782217838000,-416.6664491,0.00016436,2]
[426215345,1782217838000,-500.0,0.00016436,2]
[426215339,1782217838000,-500.0,0.00016436,2]
[426215341,1782217838000,-500.0,0.00016436,2]
[426215336,1782217838000,-500.0,0.00016436,2]
[426215337,1782217838000,-500.0,0.00016436,2]
[426215343,1782217838000,-500.0,0.00016436,2]
[426215390,1782217838000,-500.0,0.00016436,2]
[426215328,1782217838000,-500.0,0.00016436,2]
[426215401,1782217838000,-500.0,0.00016436,2]
[426215407,1782217838000,-500.0,0.00016436,2]
[426215403,1782217838000,-500.0,0.00016436,2]
[426215461,1782217838000,-506.97,0.00016438,2]
[426215463,1782217838000,-500.0,0.00016438,2]
[426215473,1782217838000,-500.8981257,0.00016438,2]
[426215475,1782217838000,-500.0,0.00016438,2]
[426215464,1782217838000,-500.0,0.00016438,2]
[426215467,1782217838000,-490.67351112,0.00016438,2]
[426215471,1782217838000,-500.84,0.00016438,2]
[426215469,1782217838000,-500.0,0.00016438,2]
[426215477,1782217838000,-205.21270164,0.00016438,2]
[426215479,1782217838000,-500.0,0.00016438,2]
[426215485,1782217838000,-292.75659314,0.00016438,2]
[426215489,1782217838000,-500.0,0.00016438,2]
[426215483,1782217838000,-500.0,0.00016438,2]
[426215481,1782217838000,-500.0,0.00016438,2]
[426215497,1782217838000,-203.44112196,0.00016438,2]
[426215491,1782217838000,-619.39,0.00016438,2]
[426215487,1782217838000,-500.0,0.00016438,2]
[426215499,1782217838000,-500.0,0.00016438,2]
[426215495,1782217838000,-526.22497594,0.00016438,2]
[426215501,1782217838000,-500.0,0.00016438,2]
[426215504,1782217838000,-501.10672503,0.00016438,2]
[426215503,1782217838000,-500.0,0.00016438,2]
[426215405,1782217838000,-500.0,0.00016436,2]
[426215459,1782217838000,-500.0,0.00016438,2]
[426215455,1782217838000,-506.47900533,0.00016438,2]
[426215493,1782217838000,-1000.0,0.00016438,2]
[426215453,1782217838000,-500.0,0.00016438,2]
[426215457,1782217838000,-530.83993663,0.00016438,2]
[426215424,1782217838000,-650.0,0.00016436,2]
[426215411,1782217838000,-500.0,0.00016436,2]
[426215413,1782217838000,-500.0,0.00016436,2]
[426215409,1782217838000,-500.0,0.00016436,2]
[426215418,1782217838000,-500.0,0.00016436,2]
[426215426,1782217838000,-500.0,0.00016438,2]
[426215416,1782217838000,-500.0,0.00016436,2]
[426215415,1782217838000,-500.0,0.00016436,2]
[426215421,1782217838000,-500.0,0.00016436,2]
[426215428,1782217838000,-224.40643007,0.00016438,2]
[426215422,1782217838000,-500.0,0.00016436,2]
[426215432,1782217838000,-500.0,0.00016438,2]
[426215430,1782217838000,-516.86,0.00016438,2]
[426215435,1782217838000,-563.91,0.00016438,2]
[426215437,1782217838000,-500.0,0.00016438,2]
[426215449,1782217838000,-500.0,0.00016438,2]
[426215442,1782217838000,-1000.0,0.00016438,2]
[426215441,1782217838000,-500.0,0.00016438,2]
[426215444,1782217838000,-500.0,0.00016438,2]
[426215451,1782217838000,-584.99,0.00016438,2]
[426215447,1782217838000,-501.29321047,0.00016438,2]
[426215439,1782217838000,-500.0,0.00016438,2]
[426215579,1782217839000,-500.0,0.00016438,2]
[426215576,1782217839000,-500.0,0.00016438,2]
[426215580,1782217839000,-500.0,0.00016438,2]
[426215582,1782217839000,-500.0,0.00016438,2]
[426215577,1782217839000,-500.0,0.00016438,2]
[426215571,1782217839000,-500.0,0.00016438,2]
[426215585,1782217839000,-500.0,0.00016438,2]
[426215575,1782217839000,-500.0,0.00016438,2]
[426215573,1782217839000,-500.0,0.00016438,2]
[426215569,1782217839000,-392.54621598,0.00016438,2]
[426215578,1782217839000,-500.0,0.00016438,2]
[426215574,1782217839000,-500.0,0.00016438,2]
[426215581,1782217839000,-500.0,0.00016438,2]
[426215594,1782217839000,-500.0,0.00016438,2]
[426215584,1782217839000,-500.0,0.00016438,2]
[426215588,1782217839000,-500.0,0.00016438,2]
[426215589,1782217839000,-500.0,0.00016438,2]
[426215586,1782217839000,-178.56183371,0.00016438,2]
[426215587,1782217839000,-500.0,0.00016438,2]
[426215591,1782217839000,-500.0,0.00016438,2]
[426215592,1782217839000,-500.0,0.00016438,2]
[426215590,1782217839000,-500.0,0.00016438,2]
[426215595,1782217839000,-500.0,0.00016438,2]
[426215593,1782217839000,-500.0,0.00016438,2]
[426215597,1782217839000,-500.0,0.00016438,2]
[426215598,1782217839000,-500.0,0.00016438,2]
[426215563,1782217839000,-500.0,0.00016438,2]
[426215583,1782217839000,-500.0,0.00016438,2]
[426215565,1782217839000,-513.73815572,0.00016438,2]
[426215516,1782217839000,-500.0,0.00016438,2]
[426215561,1782217839000,-504.44677738,0.00016438,2]
[426215596,1782217839000,-500.0,0.00016438,2]
[426215508,1782217839000,-500.0,0.00016438,2]
[426215506,1782217839000,-500.0,0.00016438,2]
[426215510,1782217839000,-500.0,0.00016438,2]
[426215512,1782217839000,-500.0,0.00016438,2]
[426215518,1782217839000,-500.0,0.00016438,2]
[426215520,1782217839000,-500.0,0.00016438,2]
[426215522,1782217839000,-500.0,0.00016438,2]
[426215514,1782217839000,-500.0,0.00016438,2]
[426215524,1782217839000,-500.0,0.00016438,2]
[426215526,1782217839000,-571.873841,0.00016438,2]
[426215528,1782217839000,-500.0,0.00016438,2]
[426215530,1782217839000,-179.308122,0.00016438,2]
[426215538,1782217839000,-500.0,0.00016438,2]
[426215540,1782217839000,-500.0,0.00016438,2]
[426215536,1782217839000,-500.0,0.00016438,2]
[426215532,1782217839000,-500.0,0.00016438,2]
[426215533,1782217839000,-500.0,0.00016438,2]
[426215548,1782217839000,-507.03055396,0.00016438,2]
[426215542,1782217839000,-1389.69,0.00016438,2]
[426215546,1782217839000,-400.0,0.00016438,2]
[426215550,1782217839000,-500.0,0.00016438,2]
[426215544,1782217839000,-500.0,0.00016438,2]
[426215552,1782217839000,-485.0,0.00016438,2]
[426215557,1782217839000,-314.3936499,0.00016438,2]
[426215554,1782217839000,-500.0,0.00016438,2]
[426215560,1782217839000,-590.0,0.00016438,2]
[426215567,1782217839000,-500.0,0.00016438,2]
[426215600,1782217839000,-500.0,0.00016438,2]
[426215706,1782217839000,-500.0,0.00016712,2]
[426215616,1782217839000,-500.0,0.00016708,2]
[426215654,1782217839000,-500.0,0.00016711,2]
[426215668,1782217839000,-500.0,0.00016712,2]
[426215656,1782217839000,-500.0,0.00016711,2]
[426215670,1782217839000,-224.40643007,0.00016712,2]
[426215672,1782217839000,-584.99,0.00016712,2]
[426215674,1782217839000,-327.33,0.00016712,2]
[426215678,1782217839000,-500.0,0.00016712,2]
[426215676,1782217839000,-510.32523222,0.00016712,2]
[426215680,1782217839000,-233.96,0.00016712,2]
[426215682,1782217839000,-500.0,0.00016712,2]
[426215690,1782217839000,-500.0,0.00016712,2]
[426215684,1782217839000,-201.29,0.00016712,2]
[426215686,1782217839000,-1389.69,0.00016712,2]
[426215688,1782217839000,-459.99,0.00016712,2]
[426215692,1782217839000,-500.0,0.00016712,2]
[426215694,1782217839000,-525.14,0.00016712,2]
[426215713,1782217839000,-500.96,0.00016712,2]
[426215711,1782217839000,-502.64,0.00016712,2]
[426215702,1782217839000,-272.74,0.00016712,2]
[426215709,1782217839000,-500.0,0.00016712,2]
[426215704,1782217839000,-500.0,0.00016712,2]
[426215696,1782217839000,-500.0,0.00016712,2]
[426215715,1782217839000,-500.0,0.00016712,2]
[426215708,1782217839000,-500.0,0.00016712,2]
[426215700,1782217839000,-349.03,0.00016712,2]
[426215610,1782217839000,-500.0,0.00016708,2]
[426215717,1782217839000,-500.0,0.00016712,2]
[426215652,1782217839000,-1278.39,0.00016711,2]
[426215650,1782217839000,-500.0,0.00016711,2]
[426215698,1782217839000,-541.61,0.00016712,2]
[426215666,1782217839000,-2059.365843,0.00016711,2]
[426215648,1782217839000,-500.0,0.00016711,2]
[426215599,1782217839000,-548.67982492,0.00016438,2]
[426215618,1782217839000,-355.34002864,0.00016708,2]
[426215614,1782217839000,-524.8755111,0.00016708,2]
[426215604,1782217839000,-500.0,0.00016708,2]
[426215620,1782217839000,-500.0,0.00016708,2]
[426215608,1782217839000,-500.0,0.00016708,2]
[426215605,1782217839000,-500.0,0.00016708,2]
[426215602,1782217839000,-500.0,0.00016438,2]
[426215622,1782217839000,-500.0,0.00016708,2]
[426215624,1782217839000,-500.0,0.00016709,2]
[426215625,1782217839000,-502.55748905,0.00016709,2]
[426215629,1782217839000,-571.53549247,0.00016709,2]
[426215612,1782217839000,-500.0,0.00016708,2]
[426215633,1782217839000,-527.39,0.00016709,2]
[426215658,1782217839000,-500.0,0.00016711,2]
[426215664,1782217839000,-2059.365843,0.00016711,2]
[426215660,1782217839000,-2059.365843,0.00016711,2]
[426215646,1782217839000,-500.0,0.00016711,2]
[426215662,1782217839000,-2059.365843,0.00016711,2]
[426215637,1782217839000,-613.86,0.00016711,2]
[426215644,1782217839000,-500.0,0.00016711,2]
[426215641,1782217839000,-500.0,0.00016711,2]
[426215642,1782217839000,-500.0,0.00016711,2]
[426215631,1782217839000,-500.0,0.00016709,2]
[426215627,1782217839000,-500.0,0.00016709,2]
[426215639,1782217839000,-500.0,0.00016711,2]
[426215635,1782217839000,-500.0,0.00016711,2]
[426215791,1782217840000,-500.0,0.00016986,2]
[426215789,1782217840000,-500.0,0.00016986,2]
[426215795,1782217840000,-224.40643007,0.00017148,2]
[426215787,1782217840000,-500.0,0.00016986,2]
[426215785,1782217840000,-413.24,0.00016986,2]
[426215801,1782217840000,-213.303905,0.00017256,2]
[426215799,1782217840000,-668.52,0.0001725,3]
[426215805,1782217840000,-584.99,0.0001726,2]
[426215797,1782217840000,-1079.9,0.0001725,3]
[426215783,1782217840000,-500.0,0.00016986,2]
[426215803,1782217840000,-500.0,0.00017259,2]
[426215793,1782217840000,-500.0,0.00016986,2]
[426215813,1782217840000,-2059.365843,0.0001726,2]
[426215811,1782217840000,-2059.365843,0.0001726,2]
[426215809,1782217840000,-2059.365843,0.0001726,2]
[426215830,1782217840000,-151.0,0.0001726,2]
[426215819,1782217840000,-500.0,0.0001726,2]
[426215817,1782217840000,-500.0,0.0001726,2]
[426215821,1782217840000,-241.2,0.0001726,2]
[426215815,1782217840000,-2059.365843,0.0001726,2]
[426215828,1782217840000,-500.0,0.0001726,2]
[426215823,1782217840000,-500.0,0.0001726,2]
[426215832,1782217840000,-151.0,0.0001726,2]
[426215768,1782217840000,-151.0,0.00016986,2]
[426215825,1782217840000,-500.0,0.0001726,2]
[426215807,1782217840000,-1389.69,0.0001726,2]
[426215776,1782217840000,-500.0,0.00016986,2]
[426215745,1782217840000,-554.32,0.00016986,2]
[426215772,1782217840000,-151.0,0.00016986,2]
[426215834,1782217840000,-151.0,0.0001726,2]
[426215721,1782217840000,-500.0,0.00016982,2]
[426215719,1782217840000,-500.0,0.00016712,2]
[426215723,1782217840000,-201.22,0.00016982,2]
[426215727,1782217840000,-500.0,0.00016985,2]
[426215739,1782217840000,-280.10582815,0.00016986,2]
[426215725,1782217840000,-468.34,0.00016983,2]
[426215729,1782217840000,-500.0,0.00016985,2]
[426215735,1782217840000,-151.0,0.00016985,2]
[426215731,1782217840000,-151.0,0.00016985,2]
[426215737,1782217840000,-151.0,0.00016985,2]
[426215733,1782217840000,-151.0,0.00016985,2]
[426215774,1782217840000,-646.24,0.00016986,2]
[426215741,1782217840000,-584.99,0.00016986,2]
[426215746,1782217840000,-194.487014,0.00016986,2]
[426215750,1782217840000,-151.0,0.00016986,2]
[426215752,1782217840000,-251.618297,0.00016986,2]
[426215748,1782217840000,-151.0,0.00016986,2]
[426215762,1782217840000,-184.907754,0.00016986,2]
[426215764,1782217840000,-151.0,0.00016986,2]
[426215758,1782217840000,-184.907754,0.00016986,2]
[426215756,1782217840000,-184.907754,0.00016986,2]
[426215754,1782217840000,-1389.69,0.00016986,2]
[426215760,1782217840000,-184.907754,0.00016986,2]
[426215766,1782217840000,-163.21,0.00016986,2]
[426215770,1782217840000,-151.0,0.00016986,2]
[426215742,1782217840000,-619.99,0.00016986,2]
[426215846,1782217840000,-336.21674319,0.00017326,2]
[426215950,1782217840000,-219.883901,0.00018076,2]
[426215836,1782217840000,-153.45277655,0.0001726,2]
[426215895,1782217840000,-645.769576,0.00017469,2]
[426215904,1782217840000,-184.23,0.00017534,2]
[426215900,1782217840000,-1389.69,0.00017534,2]
[426215907,1782217840000,-500.0,0.00017534,2]
[426215905,1782217840000,-256.54,0.00017534,2]
[426215909,1782217840000,-500.0,0.00017534,2]
[426215911,1782217840000,-151.142867,0.00017654,2]
[426215913,1782217840000,-500.0,0.00017807,2]
[426215915,1782217840000,-224.40643007,0.00017808,2]
[426215925,1782217840000,-500.0,0.00017808,2]
[426215923,1782217840000,-285.5,0.00017808,2]
[426215919,1782217840000,-1389.69,0.00017808,2]
[426215896,1782217840000,-500.0,0.00017533,2]
[426215921,1782217840000,-500.0,0.00017808,2]
[426215917,1782217840000,-584.99,0.00017808,2]
[426215933,1782217840000,-151.0,0.0001784,2]
[426215946,1782217840000,-184.907754,0.00017928,2]
[426215931,1782217840000,-151.0,0.0001784,2]
[426215939,1782217840000,-151.0,0.00017928,2]
[426215948,1782217840000,-184.907754,0.00017928,2]
[426215944,1782217840000,-184.907754,0.00017928,2]
[426215937,1782217840000,-151.0,0.00017928,2]
[426215941,1782217840000,-253.820766,0.00017928,2]
[426215935,1782217840000,-151.0,0.00017928,2]
[426215942,1782217840000,-184.907754,0.00017928,2]
[426215837,1782217840000,-160.29030719,0.00017322,7]
[426215929,1782217840000,-151.0,0.0001784,2]
[426215893,1782217840000,-300.0,0.00017428,2]
[426215927,1782217840000,-151.0,0.0001784,2]
[426215902,1782217840000,-500.0,0.00017534,2]
[426215898,1782217840000,-584.99,0.00017534,2]
[426215847,1782217840000,-188.28137619,0.00017376,2]
[426215842,1782217840000,-236.20506015,0.00017326,2]
[426215854,1782217840000,-160.0,0.00017376,2]
[426215843,1782217840000,-215.17871564,0.00017326,2]
[426215850,1782217840000,-160.0,0.00017376,2]
[426215852,1782217840000,-160.0,0.00017376,2]
[426215856,1782217840000,-191.94933428,0.00017376,2]
[426215860,1782217840000,-500.0,0.00017427,2]
[426215864,1782217840000,-500.0,0.00017427,2]
[426215858,1782217840000,-483.66795809,0.00017376,2]
[426215862,1782217840000,-500.0,0.00017427,2]
[426215866,1782217840000,-300.0,0.00017428,2]
[426215839,1782217840000,-160.0,0.00017326,2]
[426215870,1782217840000,-300.0,0.00017428,2]
[426215877,1782217840000,-300.0,0.00017428,2]
[426215887,1782217840000,-300.0,0.00017428,2]
[426215889,1782217840000,-300.0,0.00017428,2]
[426215882,1782217840000,-300.0,0.00017428,2]
[426215885,1782217840000,-300.0,0.00017428,2]
[426215883,1782217840000,-300.0,0.00017428,2]
[426215891,1782217840000,-300.0,0.00017428,2]
[426215876,1782217840000,-300.0,0.00017428,2]
[426215874,1782217840000,-300.0,0.00017428,2]
[426215872,1782217840000,-300.0,0.00017428,2]
[426215868,1782217840000,-300.0,0.00017428,2]
[426215879,1782217840000,-300.0,0.00017428,2]
[426216033,1782217841000,-1278.39,0.00018305,2]
[426216037,1782217841000,-1278.39,0.00018305,2]
[426216027,1782217841000,-1278.39,0.00018305,2]
[426216019,1782217841000,-151.0,0.00018305,2]
[426216031,1782217841000,-1278.39,0.00018305,2]
[426216021,1782217841000,-151.0,0.00018305,2]
[426216016,1782217841000,-500.0,0.00018304,2]
[426216025,1782217841000,-1278.39,0.00018305,2]
[426216017,1782217841000,-393.11710847,0.00018304,2]
[426216013,1782217841000,-500.0,0.00018304,2]
[426216035,1782217841000,-1278.39,0.00018305,2]
[426216029,1782217841000,-1278.39,0.00018305,2]
[426216039,1782217841000,-1278.39,0.00018305,2]
[426216053,1782217841000,-1278.39,0.00018305,2]
[426216049,1782217841000,-1278.39,0.00018305,2]
[426216043,1782217841000,-1278.39,0.00018305,2]
[426216041,1782217841000,-1278.39,0.00018305,2]
[426216045,1782217841000,-1278.39,0.00018305,2]
[426216057,1782217841000,-1278.39,0.00018305,2]
[426216055,1782217841000,-1278.39,0.00018305,2]
[426216051,1782217841000,-1278.39,0.00018305,2]
[426216059,1782217841000,-1278.39,0.00018305,2]
[426216060,1782217841000,-1278.39,0.00018305,2]
[426216070,1782217841000,-151.0,0.00018305,2]
[426216072,1782217841000,-151.0,0.00018305,2]
[426216023,1782217841000,-1278.39,0.00018305,2]
[426216047,1782217841000,-1278.39,0.00018305,2]
[426216003,1782217841000,-399.08418245,0.00018238,2]
[426215954,1782217841000,-584.99,0.00018082,2]
[426216005,1782217841000,-307.85971082,0.00018238,2]
[426215952,1782217841000,-500.0,0.00018081,2]
[426216068,1782217841000,-151.0,0.00018305,2]
[426215960,1782217841000,-1389.69,0.00018082,2]
[426215956,1782217841000,-151.0,0.00018082,2]
[426215963,1782217841000,-500.0,0.00018082,2]
[426215973,1782217841000,-160.0,0.00018125,2]
[426215958,1782217841000,-151.0,0.00018082,2]
[426215961,1782217841000,-440.76,0.00018082,2]
[426215969,1782217841000,-2059.365843,0.00018125,2]
[426215966,1782217841000,-2059.365843,0.00018125,2]
[426215967,1782217841000,-2059.365843,0.00018125,2]
[426215971,1782217841000,-2059.365843,0.00018125,2]
[426215978,1782217841000,-1187.288305,0.00018125,2]
[426215976,1782217841000,-673.644152,0.00018125,2]
[426215980,1782217841000,-160.0,0.00018125,2]
[426215982,1782217841000,-1103.054698,0.00018125,2]
[426215984,1782217841000,-820.74657643,0.00018125,2]
[426215997,1782217841000,-247.746285,0.00018166,2]
[426215987,1782217841000,-1225.36281957,0.00018125,2]
[426215989,1782217841000,-160.0,0.00018125,2]
[426215999,1782217841000,-335.49257,0.00018166,2]
[426215995,1782217841000,-160.0,0.00018166,2]
[426216001,1782217841000,-645.769576,0.00018204,2]
[426215991,1782217841000,-697.269399,0.00018125,2]
[426215993,1782217841000,-1234.538798,0.00018125,2]
[426216007,1782217841000,-554.14747947,0.00018238,2]
[426216008,1782217841000,-205.78044713,0.00018238,2]
[426216011,1782217841000,-154.27,0.00018295,3]